fUST/lending_fUST_20240321
["ID","MTS","AMOUNT","RATE_DAILY","PERIOD"]
[319753659,1710958241604,-841.12,0.00024993,2]
[319753660,1710958241613,-2647.38,0.00024993,2]
[319753661,1710958241622,-500.0,0.00024993,2]
[319753662,1710958241633,-911.11,0.00024993,2]
[319753663,1710958241642,-500.0,0.00024993,2]
[319753664,1710958241651,-597.87,0.00024993,2]
[319753665,1710958241664,-309.6903097,0.00024993,2]
[319753666,1710958241673,-500.0,0.00024993,2]
[319753667,1710958241683,-620.83,0.00024993,2]
[319753668,1710958241692,-500.0,0.00024993,2]
[319753669,1710958241702,-1751.31,0.00024993,2]
[319753670,1710958241711,-500.0,0.00024993,2]
[319753671,1710958241720,-500.0,0.00024993,2]
[319753672,1710958241730,-3756.25,0.00024993,2]
[319753673,1710958241739,-500.0,0.00024993,2]
[319753674,1710958241749,-500.0,0.00024993,2]
[319753675,1710958241759,-500.0,0.00024993,2]
[319753676,1710958241772,-500.0,0.00024993,2]
[319753677,1710958241781,-500.0,0.00024993,2]
[319753678,1710958241792,-606.28,0.00024993,2]
[319753679,1710958241801,-4352.27,0.00024993,2]
[319753680,1710958241811,-500.0,0.00024993,2]
[319753681,1710958241820,-156.60226466,0.00024993,2]
[319753755,1710958243800,-17738.29,0.00024992,2]
[319753756,1710958243810,-447.20773534,0.00024993,2]
[319753757,1710958243819,-50.19375328,0.00024993,2]
[319753798,1710958246715,-383.29372264,0.00024992,2]
[319753799,1710958246724,-325.68369138,0.00024992,2]
[319753800,1710958246733,-180.27344571,0.00024992,2]
[319753801,1710958246743,-3599.74,0.00024992,2]
[319753802,1710958246752,-800.72624672,0.00024993,2]
[319753803,1710958246761,-500.0,0.00024993,2]
[319753804,1710958246770,-846.81,0.00024993,2]
[319753805,1710958246780,-500.0,0.00024993,2]
[319753806,1710958246790,-186.066422,0.00024993,2]
[319753807,1710958246798,-11653.78600837,0.00024993,2]
[319753808,1710958246810,-10021.82399163,0.00024993,2]
[319753809,1710958246819,-684.31,0.00024993,2]
[319753810,1710958246829,-2384.5,0.00024993,2]
[319753811,1710958246838,-186.066422,0.00024993,2]
[319753812,1710958246847,-605.13,0.00024993,2]
[319753813,1710958246858,-605.26,0.00024993,2]
[319753814,1710958246868,-5378.15613418,0.00024993,2]
[319753815,1710958247000,-0.17934193,0.00024993,2]
[319753816,1710958252248,237.0359856,0.00024187,2]
[319753817,1710958281756,154.92253873,0.00024187,2]
[319753818,1710958295675,155.04646437,0.00024187,2]
[319753819,1710958299667,154.92253873,0.00024187,2]
[319753820,1710958315587,161.00561673,0.00024187,2]
[319753822,1710958537682,-150.5,0.0002551,35]
[319753823,1710958537837,-150.5,0.00025512,35]
[319753824,1710958537859,-150.5,0.0002552,35]
[319753825,1710958537886,-238.53,0.00025522,35]
[319753826,1710958537907,-150.5,0.00025522,35]
[319753827,1710958537928,-160.87,0.00025527,35]
[319753828,1710958537949,-150.5,0.0002553,35]
[319753829,1710958537970,-150.5,0.00025532,35]
[319753830,1710958537991,-150.5,0.00025532,35]
[319753831,1710958538011,-150.5,0.00025537,35]
[319753832,1710958589825,-179.37252,0.00026575,120]
[319753833,1710958598648,1016.66372506,0.0004101,42]
[319753834,1710958713733,-266.36282467,0.00024989,7]
[319753835,1710958803760,179.37252,0.00026575,120]
[319753837,1710958902756,353.916,0.00021,2]
[319753838,1710958905289,997.0,0.00030296,30]
[319753839,1710958915980,997.0,0.00030296,30]
[319753840,1710958927054,997.0,0.00030296,30]
[319753841,1710958937695,997.0,0.00030296,30]
[319753843,1710958948431,997.0,0.00030296,30]
[319753844,1710958959046,997.0,0.00030296,30]
[319753845,1710958969649,997.0,0.00030296,30]
[319753846,1710958980213,997.0,0.00030296,30]
[319753864,1710959354203,-154.93802479,0.00022079,2]
[319753865,1710959354226,-210.95504491,0.00022079,2]
[319753866,1710959354249,-269.83823354,0.0002208,2]
[319753867,1710959354270,-1885.12194892,0.00022081,2]
[319753868,1710959354290,-783.57894867,0.00022082,2]
[319753869,1710959354312,-331.89131947,0.00022082,2]
[319753870,1710959354333,-3436.23958139,0.00022082,2]
[319753871,1710959354355,-154.93802479,0.00022083,2]
[319753872,1710959354376,-154.93802479,0.00022083,2]
[319753873,1710959354396,-683.2104041,0.00022083,2]
[319753874,1710959354418,-154.93802479,0.00022084,2]
[319753875,1710959354439,-172.897601,0.00022111,2]
[319753876,1710959354468,-24900.0,0.00022637,2]
[319753877,1710959354491,-158.14912,0.00022804,2]
[319753878,1710959354513,-5017.04737452,0.00024,2]
[319753879,1710959354535,-2491.48142764,0.00024,2]
[319753880,1710959357425,114.06189888,0.00022079,2]
[319753925,1710959431990,-40.87612591,0.00022079,2]
[319753927,1710959432000,-702.97948055,0.0002479,2]
[319753928,1710959432019,-80.59946812,0.0002479,2]
[319753929,1710959432029,-154.93802479,0.00024791,2]
[319753931,1710959432038,-154.93802479,0.00024791,2]
[319753933,1710959432047,-325.94298002,0.00024792,2]
[319753935,1710959432056,-116.03184543,0.00024792,2]
[319753987,1710959437936,-64.08316441,0.00024792,2]
[319753989,1710959437946,-635.27243804,0.00024793,7]
[319753991,1710959437955,-306.0,0.000248,2]
[319753993,1710959437964,-164.5590068,0.000248,2]
[319753995,1710959437973,-422.5616968,0.000248,2]
[319753997,1710959437983,-1544.47523462,0.0002489,2]
[319753999,1710959437992,-2626.97682629,0.0002489,2]
[319754001,1710959438004,-805.01291919,0.0002489,2]
[319754003,1710959438015,-270.69336367,0.0002489,2]
[319754005,1710959438024,-705.2688805,0.0002489,2]
[319754013,1710959438146,-269.83823354,0.0002489,2]
[319754014,1710959438156,-155.73929098,0.0002489,2]
[319754015,1710959438165,-154.13677957,0.0002489,2]
[319754050,1710959439934,-169.47411999,0.0002489,2]
[319754051,1710959439943,-310.88868001,0.00024891,2]
[319754146,1710959445945,-269.83823354,0.00024791,2]
[319754147,1710959445955,-151.79793318,0.00024841,2]
[319754148,1710959445964,-1268.96131999,0.00024891,2]
[319754149,1710959445974,-3543.62,0.00024891,2]
[319754150,1710959445984,-1489.22,0.00024891,2]
[319754151,1710959445993,-787.33,0.00024891,2]
[319754152,1710959446003,-16999.2,0.00024891,2]
[319754153,1710959446013,-1954.53,0.00024891,2]
[319754154,1710959446026,-1283.4,0.00024891,2]
[319754155,1710959446035,-950.72,0.00024891,2]
[319754156,1710959446044,-500.0,0.00024891,2]
[319754157,1710959446054,-1478.95,0.00024891,2]
[319754158,1710959446063,-8970.24,0.00024891,2]
[319754159,1710959446073,-286.42598368,0.00024891,2]
[319754160,1710959446085,-500.0,0.00024891,2]
[319754161,1710959446095,-1060.88,0.00024891,2]
[319754162,1710959446105,-500.0,0.00024891,2]
[319754163,1710959446114,-2539.84,0.00024891,2]
[319754164,1710959446125,-1524.62,0.00024891,2]
[319754165,1710959446137,-500.0,0.00024891,2]
[319754166,1710959446147,-798.61,0.00024891,2]
[319754167,1710959446156,-18061.85,0.00024891,2]
[319754169,1710959446167,-500.0,0.00024891,2]
[319754172,1710959446176,-500.0,0.00024891,2]
[319754175,1710959446185,-500.0,0.00024891,2]
[319754176,1710959446195,-160.0,0.00024891,2]
[319754177,1710959446206,-358.48433372,0.00024891,2]
[319754178,1710959446215,-337.11654052,0.00024891,2]
[319754179,1710959446224,-276000.0,0.00024892,2]
[319754181,1710959446234,-1000.0,0.00024892,2]
[319754183,1710959446243,-500.0,0.00024893,2]
[319754185,1710959446253,-500.0,0.00024893,2]
[319754187,1710959446267,-3514.88941605,0.00024893,2]
[319754189,1710959446278,-191.74719797,0.00024989,2]
[319754191,1710959446287,-469.50912641,0.00024989,2]
[319754193,1710959446296,-180.4960091,0.00024989,2]
[319754195,1710959446306,-272.9107746,0.00024989,2]
[319754197,1710959446315,-670.97419831,0.00024989,2]
[319754199,1710959446325,-1475.97890388,0.00024989,2]
[319754201,1710959446335,-301.13777609,0.00024989,2]
[319754204,1710959446345,-324.04367069,0.00024989,2]
[319754205,1710959446356,-290.928445,0.00024989,2]
[319754207,1710959446366,-266.36282467,0.00024989,7]
[319754208,1710959446376,-56503.24751949,0.0002499,3]
[319754209,1710959446386,-155.0,0.0002499,2]
[319754210,1710959446397,-200.367208,0.0002499,2]
[319754211,1710959446413,-765.82237552,0.0002499,2]
[319754212,1710959446428,-241.48433561,0.0002499,2]
[319754213,1710959446443,-500.0,0.0002499,2]
[319754214,1710959446457,-500.0,0.0002499,2]
[319754215,1710959446469,-500.0,0.0002499,2]
[319754216,1710959446482,-500.0,0.0002499,2]
[319754217,1710959446495,-564.73,0.0002499,2]
[319754218,1710959446509,-500.0,0.0002499,2]
[319754219,1710959446534,-292.57173594,0.0002499,2]
[319754220,1710959446548,-500.0,0.0002499,2]
[319754221,1710959446561,-500.0,0.0002499,2]
[319754222,1710959446574,-703.01,0.0002499,2]
[319754223,1710959446584,-873.15,0.0002499,2]
[319754224,1710959446613,-590.08,0.0002499,2]
[319754225,1710959446629,-592.28538336,0.0002499,2]
[319754226,1710959446643,-2537.07,0.0002499,2]
[319754227,1710959446655,-500.0,0.0002499,2]
[319754228,1710959446669,-572.96,0.0002499,2]
[319754229,1710959446684,-500.0,0.0002499,2]
[319754230,1710959446698,-1678.34,0.0002499,2]
[319754231,1710959446709,-500.0,0.0002499,2]
[319754232,1710959446721,-500.0,0.0002499,2]
[319754233,1710959446735,-3449.75,0.0002499,2]
[319754234,1710959446749,-500.0,0.0002499,2]
[319754235,1710959446763,-4376.97,0.0002499,2]
[319754236,1710959446780,-581.02,0.0002499,2]
[319754237,1710959446793,-500.0,0.0002499,2]
[319754238,1710959446805,-811.53,0.0002499,2]
[319754239,1710959446818,-2285.14,0.0002499,2]
[319754240,1710959446831,-578.66,0.0002499,2]
[319754241,1710959446843,-655.79,0.0002499,2]
[319754242,1710959446857,-20772.46,0.0002499,2]
[319754243,1710959446871,-151.0,0.0002499,2]
[319754244,1710959446885,-151.0,0.0002499,2]
[319754245,1710959446898,-500.0,0.0002499,2]
[319754246,1710959446910,-2754.02,0.0002499,2]
[319754247,1710959446921,-579.92,0.0002499,2]
[319754248,1710959446932,-500.0,0.0002499,2]
[319754249,1710959446942,-500.0,0.0002499,2]
[319754250,1710959446954,-1779.45,0.0002499,2]
[319754251,1710959446967,-155.04646437,0.00024991,2]
[319754252,1710959446979,-309.76769358,0.00024991,2]
[319754253,1710959446992,-155.66603492,0.00024991,2]
[319754254,1710959447004,-239.09546587,0.00024991,2]
[319754255,1710959447020,-275.2653267,0.00024991,2]
[319754256,1710959447035,-155.0,0.00024991,2]
[319754257,1710959447046,-500.0,0.00024991,2]
[319754258,1710959447057,-500.0,0.00024991,2]
[319754259,1710959447069,-500.0,0.00024991,2]
[319754260,1710959447083,-500.0,0.00024991,2]
[319754261,1710959447099,-500.0,0.00024991,2]
[319754262,1710959447112,-500.0,0.00024991,2]
[319754263,1710959447125,-500.0,0.00024991,2]
[319754264,1710959447140,-500.0,0.00024991,2]
[319754265,1710959447152,-500.0,0.00024991,2]
[319754266,1710959447163,-500.0,0.00024991,2]
[319754267,1710959447175,-500.0,0.00024991,2]
[319754268,1710959447187,-500.0,0.00024991,2]
[319754269,1710959447198,-650.6,0.00024991,2]
[319754270,1710959447210,-806.08,0.00024991,2]
[319754271,1710959447221,-594.96,0.00024991,2]
[319754272,1710959447233,-500.0,0.00024991,2]
[319754273,1710959447245,-500.0,0.00024991,2]
[319754274,1710959447256,-581.03140432,0.00024991,2]
[319754275,1710959447273,-500.0,0.00024991,2]
[319754276,1710959447284,-1499.021175,0.00024991,2]
[319754277,1710959447296,-1499.021175,0.00024991,2]
[319754278,1710959447307,-500.0,0.00024991,2]
[319754279,1710959447318,-169.431089,0.00024991,2]
[319754280,1710959447330,-169.431089,0.00024991,2]
[319754281,1710959447342,-500.0,0.00024991,2]
[319754282,1710959447353,-815.46,0.00024991,2]
[319754283,1710959447364,-580.04,0.00024991,2]
[319754284,1710959447374,-500.0,0.00024991,2]
[319754285,1710959447385,-562.38,0.00024991,2]
[319754286,1710959447397,-500.0,0.00024991,2]
[319754287,1710959447407,-151.0,0.00024991,2]
[319754288,1710959447418,-151.0,0.00024991,2]
[319754289,1710959447429,-500.0,0.00024991,2]
[319754290,1710959447440,-500.0,0.00024991,2]
[319754291,1710959447451,-151.0,0.00024991,2]
[319754292,1710959447462,-199.584983,0.00024991,2]
[319754293,1710959447473,-309.85910611,0.00024991,2]
[319754294,1710959447484,-500.0,0.00024991,2]
[319754295,1710959447494,-639.37,0.00024991,2]
[319754296,1710959447505,-500.0,0.00024991,2]
[319754297,1710959447521,-543.307384,0.00024991,2]
[319754298,1710959447532,-543.307384,0.00024991,2]
[319754299,1710959447544,-543.307384,0.00024991,2]
[319754300,1710959447556,-543.307384,0.00024991,2]
[319754301,1710959447567,-500.0,0.00024991,2]
[319754302,1710959447578,-500.0,0.00024991,2]
[319754303,1710959447589,-500.0,0.00024991,2]
[319754304,1710959447600,-500.0,0.00024991,2]
[319754305,1710959447611,-151.0,0.00024991,2]
[319754306,1710959447622,-151.0,0.00024991,2]
[319754307,1710959447633,-288.315337,0.00024991,2]
[319754308,1710959447644,-1735.26,0.00024991,2]
[319754309,1710959447656,-500.0,0.00024991,2]
[319754310,1710959447666,-500.0,0.00024991,2]
[319754311,1710959447678,-167.45978,0.00024991,2]
[319754312,1710959447691,-167.45978,0.00024991,2]
[319754313,1710959447701,-167.45978,0.00024991,2]
[319754314,1710959447853,-167.45978,0.00024991,2]
[319754315,1710959447868,-167.45978,0.00024991,2]
[319754316,1710959447878,-167.45978,0.00024991,2]
[319754317,1710959447890,-500.0,0.00024991,2]
[319754318,1710959447901,-151.0,0.00024991,2]
[319754319,1710959447915,-151.0,0.00024991,2]
[319754320,1710959447926,-151.0,0.00024991,2]
[319754321,1710959447937,-151.0,0.00024991,2]
[319754322,1710959447948,-500.0,0.00024991,2]
[319754323,1710959447960,-31622.84,0.00024991,2]
[319754324,1710959447971,-500.3759659,0.00024991,2]
[319754325,1710959447981,-500.0,0.00024991,2]
[319754326,1710959447991,-500.0,0.00024991,2]
[319754327,1710959448002,-500.0,0.00024991,2]
[319754328,1710959448022,-500.0,0.00024991,2]
[319754329,1710959448033,-500.0,0.00024991,2]
[319754330,1710959448043,-500.0,0.00024991,2]
[319754331,1710959448054,-500.0,0.00024991,2]
[319754332,1710959448065,-526.67,0.00024991,2]
[319754333,1710959448075,-251.48595237,0.00024992,2]
[319754334,1710959448088,-209.456181,0.00024992,2]
[319754335,1710959448098,-278.183002,0.00024992,2]
[319754336,1710959448107,-151.0,0.00024992,2]
[319754337,1710959448116,-152.476642,0.00024992,2]
[319754338,1710959448127,-500.0,0.00024992,2]
[319754339,1710959448139,-500.0,0.00024992,2]
[319754340,1710959448148,-500.0,0.00024992,2]
[319754341,1710959448157,-500.0,0.00024992,2]
[319754342,1710959448167,-3136.52,0.00024992,2]
[319754343,1710959448177,-500.0,0.00024992,2]
[319754344,1710959448186,-2372.9,0.00024992,2]
[319754345,1710959448195,-154.581955,0.00024992,2]
[319754346,1710959448205,-154.581955,0.00024992,2]
[319754347,1710959448215,-154.581955,0.00024992,2]
[319754348,1710959448224,-154.581955,0.00024992,2]
[319754349,1710959448233,-500.0,0.00024992,2]
[319754350,1710959448243,-493.56062511,0.00024992,2]
[319754351,1710959448252,-500.0,0.00024992,2]
[319754352,1710959448261,-1499.021175,0.00024992,2]
[319754353,1710959448277,-1499.021175,0.00024992,2]
[319754354,1710959448286,-1499.021175,0.00024992,2]
[319754355,1710959448302,-1499.021175,0.00024992,2]
[319754356,1710959448311,-1499.021175,0.00024992,2]
[319754357,1710959448319,-1499.021175,0.00024992,2]
[319754358,1710959448329,-500.0,0.00024992,2]
[319754359,1710959448337,-500.0,0.00024992,2]
[319754360,1710959448346,-169.431089,0.00024992,2]
[319754361,1710959448356,-169.431089,0.00024992,2]
[319754362,1710959448366,-169.431089,0.00024992,2]
[319754363,1710959448375,-169.431089,0.00024992,2]
[319754364,1710959448385,-169.431089,0.00024992,2]
[319754365,1710959448394,-169.431089,0.00024992,2]
[319754366,1710959448403,-1131.79,0.00024992,2]
[319754367,1710959448412,-500.0,0.00024992,2]
[319754368,1710959448421,-518.31921055,0.00024992,2]
[319754369,1710959448431,-1928.91,0.00024992,2]
[319754370,1710959448440,-500.0,0.00024992,2]
[319754371,1710959448450,-516.61,0.00024992,2]
[319754372,1710959448460,-519.73,0.00024992,2]
[319754373,1710959448469,-151.0,0.00024992,2]
[319754374,1710959448479,-2371.74,0.00024992,2]
[319754375,1710959448488,-506.9,0.00024992,2]
[319754376,1710959448498,-543.307384,0.00024992,2]
[319754377,1710959448507,-543.307384,0.00024992,2]
[319754378,1710959448523,-167.45978,0.00024992,2]
[319754379,1710959448532,-167.45978,0.00024992,2]
[319754380,1710959448542,-500.0,0.00024992,2]
[319754381,1710959448551,-151.0,0.00024992,2]
[319754382,1710959448560,-500.0,0.00024992,2]
[319754383,1710959448570,-175.746379,0.00024992,2]
[319754384,1710959448579,-500.0,0.00024992,2]
[319754385,1710959448588,-959196.81333394,0.00024993,2]
[319754396,1710959657773,500.0,0.00030202,120]
[319754511,1710960137740,1042.57594877,0.00030202,120]
[319754556,1710960503878,-154.93802479,0.00021236,2]
[319754557,1710960503899,-783.57894867,0.00021237,2]
[319754558,1710960503921,-24900.0,0.00021244,2]
[319754559,1710960503941,-303.25160417,0.00021862,2]
[319754560,1710960503967,-14679.0510697,0.00021984,2]
[319754561,1710960503988,-155.0,0.00022079,2]
[319754562,1710960504008,-556.199529,0.00022127,2]
[319754563,1710960504027,-1172.3944996,0.00022161,2]
[319754564,1710960504047,-1562.61075264,0.00022893,2]
[319754565,1710960504068,-1544.33355446,0.00023915,2]
[319754566,1710960504088,-652.75184698,0.0002392,2]
[319754567,1710960504108,-500.0,0.00024657,2]
[319754568,1710960504129,-500.0,0.00024657,2]
[319754569,1710960504154,-332.11896409,0.0002469,2]
[319754570,1710960504176,-332.11896409,0.00024691,2]
[319754571,1710960504199,-1000.0,0.00024691,2]
[319754572,1710960504232,-332.11896409,0.00024691,2]
[319754573,1710960504257,-332.11896409,0.00024692,2]
[319754574,1710960504279,-3259.25102277,0.00024692,2]
[319754575,1710960504301,-332.11896409,0.00024692,2]
[319754576,1710960504324,-201.2320405,0.000247,2]
[319754577,1710960504347,-306.0,0.00024704,2]
[319754578,1710960504373,-153.63614303,0.00024788,2]
[319754579,1710960504401,-28251.62375974,0.00024789,3]
[319754580,1710960504425,-1290.68,0.00024789,2]
[319754581,1710960504448,-512301.5830537,0.00024789,2]
[319754582,1710960554144,-1609.06716003,0.00021236,2]
[319754583,1710960554167,-1041.74050176,0.00022689,2]
[319754584,1710960554189,-158.14912,0.00023516,2]
[319754585,1710960554212,-278.099764,0.00023805,2]
[319754586,1710960579747,126.24100073,0.00023805,2]
[319754602,1710960632027,-15845.8667559,0.00023805,2]
[319754604,1710960632037,-783.57894867,0.00024531,2]
[319754606,1710960632049,-2000.0,0.00024532,2]
[319754608,1710960632059,-1000.0,0.00024692,2]
[319754610,1710960632069,-552.82729683,0.00024787,2]
[319754612,1710960632080,-155.19378123,0.00024788,2]
[319754614,1710960632089,-500.0,0.00024788,2]
[319754616,1710960632099,-1461.09,0.00024788,2]
[319754618,1710960632111,-51069.97669786,0.00024789,2]
[319754620,1710960632121,-548.36982492,0.00024789,2]
[319754622,1710960632132,-500.0,0.00024789,2]
[319754624,1710960632143,-500.0,0.00024789,2]
[319754626,1710960632153,-198.52109372,0.00024789,2]
[319754628,1710960632162,-500.0,0.00024789,2]
[319754630,1710960632172,-500.0,0.00024789,2]
[319754631,1710960632182,-500.0,0.00024789,2]
[319754632,1710960632192,-1065.56,0.00024789,2]
[319754633,1710960632201,-500.0,0.00024789,2]
[319754634,1710960632213,-17817.54,0.00024789,2]
[319754635,1710960632222,-3469.32,0.00024789,2]
[319754636,1710960632231,-500.0,0.00024789,2]
[319754637,1710960632241,-500.0,0.00024789,2]
[319754638,1710960632251,-500.0,0.00024789,2]
[319754639,1710960632260,-4194.59,0.00024789,2]
[319754640,1710960632269,-500.0,0.00024789,2]
[319754641,1710960632278,-16589.11,0.00024789,2]
[319754642,1710960632288,-500.0,0.0002479,2]
[319754643,1710960632299,-500.0,0.0002479,2]
[319754644,1710960632310,-500.0,0.0002479,2]
[319754645,1710960632319,-500.0,0.0002479,2]
[319754646,1710960632328,-541.2,0.0002479,2]
[319754647,1710960632338,-500.0,0.0002479,2]
[319754648,1710960632347,-500.0,0.0002479,2]
[319754649,1710960632357,-500.0,0.0002479,2]
[319754650,1710960632366,-500.0,0.0002479,2]
[319754651,1710960632376,-673.72,0.0002479,2]
[319754652,1710960632385,-2639.26,0.0002479,2]
[319754653,1710960632394,-754.52,0.0002479,2]
[319754654,1710960632404,-605.85,0.0002479,2]
[319754656,1710960632414,-16522.46,0.0002479,2]
[319754657,1710960632424,-1514.03,0.0002479,2]
[319754658,1710960632434,-500.0,0.0002479,2]
[319754659,1710960632446,-3395.97,0.0002479,2]
[319754661,1710960632454,-500.0,0.0002479,2]
[319754663,1710960632463,-603.98,0.0002479,2]
[319754665,1710960632472,-2434.01,0.0002479,2]
[319754667,1710960632482,-1427.17,0.0002479,2]
[319754669,1710960632491,-500.0,0.0002479,2]
[319754671,1710960632500,-500.0,0.0002479,2]
[319754673,1710960632509,-1873.09,0.0002479,2]
[319754675,1710960632519,-765.33,0.0002479,2]
[319754677,1710960632530,-878.18,0.0002479,2]
[319754679,1710960632539,-956.11,0.0002479,2]
[319754681,1710960632550,-500.0,0.0002479,2]
[319754683,1710960632558,-1849.78,0.0002479,2]
[319754685,1710960632567,-242.95639473,0.0002479,2]
[319754687,1710960632576,-593.48,0.0002479,2]
[319754689,1710960632584,-500.0,0.0002479,2]
[319754690,1710960632593,-502.80633074,0.0002479,2]
[319754692,1710960632602,-2567.3,0.0002479,2]
[319754694,1710960632612,-500.0,0.0002479,2]
[319754695,1710960632623,-1236.9,0.0002479,2]
[319754696,1710960632632,-500.0,0.0002479,2]
[319754697,1710960632641,-500.0,0.0002479,2]
[319754699,1710960632653,-1417.33,0.0002479,2]
[319754700,1710960632662,-575.08,0.0002479,2]
[319754701,1710960632671,-500.0,0.0002479,2]
[319754702,1710960632680,-1630.38,0.0002479,2]
[319754704,1710960632690,-500.0,0.0002479,2]
[319754705,1710960632699,-556.81,0.0002479,2]
[319754707,1710960632708,-500.0,0.0002479,2]
[319754709,1710960632718,-8596.48,0.0002479,2]
[319754711,1710960632727,-500.0,0.0002479,2]
[319754713,1710960632735,-500.0,0.0002479,2]
[319754714,1710960632745,-196.50555981,0.0002479,2]
[319754715,1710960632754,-259.89790107,0.0002479,2]
[319754716,1710960632763,-14125.81187987,0.00024792,3]
[319754717,1710960632772,-276000.0,0.00024792,2]
[319754718,1710960632781,-181.47929489,0.00024889,2]
[319754719,1710960632790,-683.01846586,0.00024889,2]
[319754720,1710960632801,-156.95842441,0.00024889,2]
[319754721,1710960632811,-282.86224559,0.00024889,2]
[319754722,1710960632820,-154.98723816,0.00024889,2]
[319754723,1710960632829,-295.97298019,0.0002489,2]
[319754724,1710960632838,-500.0,0.00024891,2]
[319754725,1710960632848,-500.0,0.00024891,2]
[319754726,1710960632857,-500.0,0.00024891,2]
[319754727,1710960632867,-500.0,0.00024891,2]
[319754728,1710960632876,-500.0,0.00024891,2]
[319754729,1710960632886,-500.0,0.00024891,2]
[319754730,1710960632895,-500.0,0.00024891,2]
[319754731,1710960632904,-500.0,0.00024891,2]
[319754732,1710960632913,-500.0,0.00024891,2]
[319754733,1710960632922,-500.0,0.00024891,2]
[319754734,1710960632932,-500.0,0.00024891,2]
[319754735,1710960632941,-500.0,0.00024891,2]
[319754736,1710960632952,-500.0,0.00024891,2]
[319754737,1710960632961,-500.0,0.00024891,2]
[319754738,1710960632970,-500.0,0.00024891,2]
[319754739,1710960632980,-205.94451388,0.00024891,2]
[319754740,1710960632990,-313.4052767,0.00024891,2]
[319754741,1710960633000,-500.0,0.00024891,2]
[319754742,1710960633009,-619.66,0.00024891,2]
[319754743,1710960633019,-500.0,0.00024891,2]
[319754744,1710960633029,-500.0,0.00024891,2]
[319754745,1710960633038,-772.49,0.00024891,2]
[319754746,1710960633051,-500.0,0.00024891,2]
[319754747,1710960633060,-661.82,0.00024891,2]
[319754748,1710960633069,-500.0,0.00024891,2]
[319754749,1710960633078,-500.0,0.00024891,2]
[319754750,1710960633088,-500.0,0.00024891,2]
[319754751,1710960633097,-500.0,0.00024891,2]
[319754752,1710960633106,-646.11157412,0.00024891,2]
[319754753,1710960633115,-151.0,0.00024891,2]
[319754754,1710960633125,-500.0,0.00024891,2]
[319754755,1710960633134,-500.0,0.00024891,2]
[319754756,1710960633143,-500.0,0.00024891,2]
[319754757,1710960633153,-500.0,0.00024891,2]
[319754758,1710960633162,-500.0,0.00024891,2]
[319754759,1710960633172,-236.8074164,0.00024891,2]
[319754760,1710960633182,-500.0,0.00024891,2]
[319754761,1710960633192,-500.0,0.00024891,2]
[319754762,1710960633202,-395.7526062,0.00024891,2]
[319754763,1710960633213,-500.0,0.00024891,2]
[319754764,1710960633222,-170.68065755,0.00024891,2]
[319754765,1710960633232,-500.0,0.00024891,2]
[319754766,1710960633241,-500.0,0.00024891,2]
[319754767,1710960633251,-500.0,0.00024891,2]
[319754768,1710960633261,-500.0,0.00024891,2]
[319754769,1710960633270,-500.0,0.00024891,2]
[319754770,1710960633279,-500.0,0.00024891,2]
[319754771,1710960633288,-500.0,0.00024891,2]
[319754772,1710960633300,-500.0,0.00024891,2]
[319754773,1710960633310,-781.49,0.00024891,2]
[319754774,1710960633319,-2387.7,0.00024891,2]